fUST/lending_fUST_20250223
["ID","MTS","AMOUNT","RATE_DAILY","PERIOD"]
[354140192,1740281445609,-500.0,0.00014408,2]
[354140194,1740281445618,-425.0,0.0001449,2]
[354140264,1740281446435,-75.0,0.0001449,2]
[354140267,1740281446445,-239.64608061,0.00014572,2]
[354141357,1740281472644,285.831974,9.041e-05,2]
[354141382,1740282632613,-462.228,0.00013349,2]
[354141383,1740282632625,-5333.72879628,0.00013349,2]
[354141384,1740282632723,-3878.84115272,0.00013349,2]
[354141385,1740282632733,-174.17096563,0.00014141,2]
[354141386,1740282632742,-300.0,0.00014159,2]
[354141387,1740282632752,-500.0,0.0001416,2]
[354141388,1740282632762,-500.0,0.0001416,2]
[354141389,1740282632771,-500.0,0.0001416,2]
[354141390,1740282632781,-459.85319181,0.0001416,2]
[354141391,1740282632790,-500.0,0.0001416,2]
[354141392,1740282632799,-500.0,0.0001416,2]
[354141393,1740282632809,-858.12,0.0001416,2]
[354141394,1740282632818,-500.0,0.0001416,2]
[354141395,1740282632827,-500.0,0.0001416,2]
[354141396,1740282632837,-500.0,0.0001416,2]
[354141397,1740282632846,-500.0,0.0001416,2]
[354141398,1740282632856,-500.0,0.0001416,2]
[354141399,1740282632865,-500.0,0.0001416,2]
[354141400,1740282632878,-500.0,0.0001416,2]
[354141401,1740282632888,-500.0,0.0001416,2]
[354141402,1740282632897,-509.4093182,0.0001416,2]
[354141403,1740282632908,-1077.37,0.0001416,2]
[354141404,1740282632924,-509.12474028,0.0001416,2]
[354141405,1740282632933,-500.0,0.0001416,2]
[354141406,1740282632943,-1391.46,0.0001416,2]
[354141407,1740282632953,-524.33298239,0.0001416,2]
[354141408,1740282632962,-500.0,0.0001416,2]
[354141409,1740282632972,-828.69,0.0001416,2]
[354141410,1740282632981,-500.0,0.0001416,2]
[354141411,1740282632990,-520.52,0.0001416,2]
[354141412,1740282633000,-500.0,0.0001416,2]
[354141413,1740282633009,-509.00777469,0.0001416,2]
[354141414,1740282633019,-500.0,0.0001416,2]
[354141415,1740282633028,-508.16783132,0.0001416,2]
[354141416,1740282633037,-500.0,0.0001416,2]
[354141417,1740282633047,-434.85758015,0.00014161,2]
[354141418,1740282633056,-412.88285846,0.00014161,2]
[354141419,1740282633069,-87.11714154,0.00014161,2]
[354141420,1740282633078,-500.0,0.00014161,2]
[354141421,1740282633088,-500.0,0.00014161,2]
[354141422,1740282633097,-500.0,0.00014161,2]
[354141423,1740282633106,-500.0,0.00014161,2]
[354141424,1740282633115,-500.0,0.00014161,2]
[354141425,1740282633125,-500.0,0.00014161,2]
[354141426,1740282633135,-324.93976726,0.00014161,2]
[354141427,1740282633146,-175.06023274,0.00014161,2]
[354141428,1740282633155,-497.30431623,0.00014161,2]
[354141464,1740282638522,-546.95,0.0001416,2]
[354141466,1740282638532,-2.69568377,0.00014161,2]
[354141468,1740282638541,-327.29422633,0.00014161,2]
[354141536,1740282640951,-172.70577367,0.00014161,2]
[354141538,1740282640960,-500.0,0.00014161,2]
[354141540,1740282640970,-500.0,0.00014161,2]
[354141542,1740282640979,-500.0,0.00014161,2]
[354141544,1740282640988,-500.0,0.00014161,2]
[354141546,1740282640997,-500.0,0.00014164,2]
[354141548,1740282641007,-500.0,0.00014241,2]
[354141550,1740282641016,-500.0,0.00014241,2]
[354141552,1740282641026,-611.67,0.00014241,2]
[354141554,1740282641035,-1184.51,0.00014241,2]
[354141556,1740282641045,-593.96,0.00014241,2]
[354141558,1740282641054,-500.0,0.00014241,2]
[354141560,1740282641063,-500.0,0.00014241,2]
[354141562,1740282641073,-500.0,0.00014241,2]
[354141564,1740282641083,-500.0,0.00014241,2]
[354141566,1740282641093,-500.0,0.00014241,2]
[354141568,1740282641102,-3231.29,0.00014241,2]
[354141570,1740282641110,-500.0,0.00014241,2]
[354141572,1740282641120,-500.0,0.00014241,2]
[354141574,1740282641128,-500.0,0.00014241,2]
[354141576,1740282641137,-500.0,0.00014241,2]
[354141577,1740282641147,-500.0,0.00014241,2]
[354141579,1740282641157,-1607.15,0.00014241,2]
[354141581,1740282641166,-500.0,0.00014241,2]
[354141583,1740282641176,-500.0,0.00014241,2]
[354141585,1740282641185,-8222.5,0.00014241,2]
[354141587,1740282641195,-500.0,0.00014241,2]
[354141589,1740282641204,-500.0,0.00014241,2]
[354141591,1740282641213,-500.0,0.00014243,2]
[354141593,1740282641223,-500.0,0.00014243,2]
[354141595,1740282641232,-500.0,0.00014243,2]
[354141597,1740282641241,-500.0,0.00014243,2]
[354141599,1740282641250,-500.0,0.00014243,2]
[354141601,1740282641259,-500.0,0.00014243,2]
[354141603,1740282641268,-505.69988613,0.00014243,2]
[354141605,1740282641277,-500.0,0.00014243,2]
[354141607,1740282641286,-500.0,0.00014243,2]
[354141609,1740282641296,-505.99557686,0.00014243,2]
[354141611,1740282641305,-500.0,0.00014243,2]
[354141613,1740282641315,-326.44028275,0.00014243,2]
[354141615,1740282641325,-212.93320502,0.00014243,2]
[354141617,1740282641334,-500.0,0.00014243,2]
[354141619,1740282641344,-858.12,0.00014243,2]
[354141621,1740282641353,-500.0,0.00014243,2]
[354141623,1740282641365,-500.0,0.00014243,2]
[354141625,1740282641375,-500.0,0.00014243,2]
[354141627,1740282641384,-500.0,0.00014243,2]
[354141629,1740282641393,-500.0,0.00014243,2]
[354141631,1740282641402,-500.0,0.00014243,2]
[354141633,1740282641413,-224.8062211,0.00014243,2]
[354141635,1740282641423,-500.0,0.00014243,2]
[354141637,1740282641433,-1077.37,0.00014243,2]
[354141640,1740282641445,-500.0,0.00014243,2]
[354141642,1740282641454,-1391.46,0.00014243,2]
[354141644,1740282641466,-828.69,0.00014243,2]
[354141646,1740282641476,-520.52,0.00014243,2]
[354141648,1740282641485,-500.0,0.00014243,2]
[354141650,1740282641494,-500.0,0.00014243,2]
[354141652,1740282641503,-500.0,0.00014243,2]
[354141654,1740282641512,-546.95,0.00014243,2]
[354141656,1740282641522,-500.0,0.00014323,2]
[354141658,1740282641532,-500.0,0.00014323,2]
[354141660,1740282641542,-500.0,0.00014323,2]
[354141662,1740282641551,-500.0,0.00014323,2]
[354141664,1740282641560,-500.0,0.00014323,2]
[354141666,1740282641570,-500.0,0.00014323,2]
[354141668,1740282641580,-500.0,0.00014323,2]
[354141670,1740282641590,-500.0,0.00014323,2]
[354141672,1740282641599,-500.0,0.00014323,2]
[354141674,1740282641608,-500.0,0.00014323,2]
[354141676,1740282641617,-500.0,0.00014323,2]
[354141678,1740282641627,-500.0,0.00014323,2]
[354141680,1740282641637,-500.0,0.00014323,2]
[354141682,1740282641646,-500.0,0.00014323,2]
[354141684,1740282641656,-500.0,0.00014323,2]
[354141686,1740282641666,-373.61986197,0.00014323,2]
[354141688,1740282641676,-510.20025937,0.00014323,2]
[354141690,1740282641685,-500.0,0.00014323,2]
[354141692,1740282641695,-500.0,0.00014323,2]
[354141694,1740282641705,-500.0,0.00014323,2]
[354141696,1740282641714,-500.0,0.00014323,2]
[354141698,1740282641724,-500.0,0.00014323,2]
[354141700,1740282641734,-611.67,0.00014323,2]
[354141703,1740282641743,-1184.51,0.00014323,2]
[354141705,1740282641754,-500.0,0.00014323,2]
[354141707,1740282641763,-500.0,0.00014323,2]
[354141708,1740282641773,-593.96,0.00014323,2]
[354141711,1740282641782,-500.0,0.00014323,2]
[354141713,1740282641792,-500.0,0.00014323,2]
[354141715,1740282641801,-500.0,0.00014323,2]
[354141717,1740282641811,-500.0,0.00014323,2]
[354141719,1740282641820,-500.0,0.00014323,2]
[354141721,1740282641830,-500.0,0.00014323,2]
[354141723,1740282641839,-500.0,0.00014323,2]
[354141725,1740282641848,-500.0,0.00014323,2]
[354141727,1740282641857,-3231.29,0.00014323,2]
[354141728,1740282641867,-500.0,0.00014323,2]
[354141731,1740282641877,-500.0,0.00014323,2]
[354141733,1740282641886,-500.0,0.00014323,2]
[354141735,1740282641896,-500.0,0.00014323,2]
[354141736,1740282641905,-216.07203135,0.00014323,2]
[354141739,1740282641914,-152.94014112,0.00014323,2]
[354141740,1740282641924,-500.0,0.00014323,2]
[354141742,1740282641934,-500.0,0.00014323,2]
[354141744,1740282641943,-500.0,0.00014323,2]
[354141746,1740282641953,-1607.15,0.00014323,2]
[354141748,1740282641962,-500.0,0.00014323,2]
[354141750,1740282641971,-500.0,0.00014323,2]
[354141752,1740282641981,-8222.5,0.00014323,2]
[354141754,1740282641990,-500.0,0.00014323,2]
[354141756,1740282642000,-503.08895227,0.00014323,2]
[354141758,1740282642010,-500.0,0.00014323,2]
[354141760,1740282642019,-500.0,0.00014323,2]
[354141762,1740282642028,-509.22186676,0.00014323,2]
[354141764,1740282642037,-500.0,0.00014323,2]
[354141766,1740282642046,-500.0,0.00014325,2]
[354141768,1740282642055,-858.12,0.00014325,2]
[354141770,1740282642064,-500.0,0.00014325,2]
[354141772,1740282642074,-500.0,0.00014325,2]
[354141775,1740282642083,-500.0,0.00014325,2]
[354141776,1740282642093,-500.0,0.00014325,2]
[354141778,1740282642103,-315.8212098,0.00014325,2]
[354141780,1740282642112,-500.0,0.00014325,2]
[354141782,1740282642121,-1077.37,0.00014325,2]
[354141785,1740282642131,-500.0,0.00014325,2]
[354141787,1740282642140,-1391.46,0.00014325,2]
[354141789,1740282642150,-828.69,0.00014325,2]
[354141791,1740282642160,-520.52,0.00014325,2]
[354141793,1740282642169,-500.0,0.00014325,2]
[354141795,1740282642179,-500.0,0.00014325,2]
[354141797,1740282642188,-500.0,0.00014325,2]
[354141799,1740282642197,-546.95,0.00014325,2]
[354141801,1740282642206,-500.0,0.00014326,2]
[354141803,1740282642216,-500.0,0.00014326,2]
[354141805,1740282642226,-638.59621379,0.00014326,2]
[354141807,1740282642235,-501.32768621,0.00014326,2]
[354141809,1740282642244,-500.0,0.00014326,2]
[354141811,1740282642254,-514.88140452,0.00014326,2]
[354141813,1740282642263,-500.0,0.00014326,2]
[354141815,1740282642272,-500.0,0.00014326,2]
[354141817,1740282642281,-500.0,0.00014326,2]
[354141819,1740282642290,-501.42897419,0.00014326,2]
[354141821,1740282642299,-500.0,0.00014406,2]
[354141822,1740282642308,-500.0,0.00014406,2]
[354141823,1740282642318,-500.0,0.00014406,2]
[354141824,1740282642327,-500.0,0.00014406,2]
[354141825,1740282642337,-500.0,0.00014406,2]
[354141826,1740282642346,-500.0,0.00014406,2]
[354141827,1740282642355,-500.0,0.00014406,2]
[354141828,1740282642369,-500.0,0.00014406,2]
[354141829,1740282642378,-500.0,0.00014406,2]
[354141830,1740282642387,-500.0,0.00014406,2]
[354141831,1740282642397,-500.0,0.00014406,2]
[354141832,1740282642407,-500.0,0.00014406,2]
[354141833,1740282642416,-500.0,0.00014406,2]
[354141834,1740282642425,-500.0,0.00014406,2]
[354141835,1740282642435,-273.93565896,0.00014406,2]
[354141836,1740282642445,-500.0,0.00014406,2]
[354141837,1740282642454,-500.0,0.00014406,2]
[354141838,1740282642464,-427.62961432,0.00014406,2]
[354141839,1740282642473,-611.67,0.00014406,2]
[354141840,1740282642483,-1184.51,0.00014406,2]
[354141841,1740282642492,-500.0,0.00014406,2]
[354141842,1740282642502,-500.0,0.00014406,2]
[354141843,1740282642511,-593.96,0.00014406,2]
[354141844,1740282642523,-500.0,0.00014406,2]
[354141845,1740282642532,-500.0,0.00014406,2]
[354141846,1740282642541,-260.34266534,0.00014406,2]
[354141847,1740282642551,-500.0,0.00014406,2]
[354141848,1740282642560,-500.0,0.00014406,2]
[354141849,1740282642569,-500.0,0.00014406,2]
[354141850,1740282642578,-3231.29,0.00014406,2]
[354141851,1740282642587,-500.0,0.00014406,2]
[354141852,1740282642596,-500.0,0.00014406,2]
[354141853,1740282642605,-500.0,0.00014406,2]
[354141854,1740282642614,-500.0,0.00014406,2]
[354141855,1740282642623,-500.0,0.00014406,2]
[354141856,1740282642632,-500.0,0.00014406,2]
[354141857,1740282642642,-500.0,0.00014406,2]
[354141858,1740282642651,-1607.15,0.00014406,2]
[354141859,1740282642660,-500.0,0.00014406,2]
[354141860,1740282642669,-500.0,0.00014406,2]
[354141861,1740282642678,-8222.5,0.00014406,2]
[354141862,1740282642688,-500.0,0.00014406,2]
[354141863,1740282642697,-500.0,0.00014406,2]
[354141864,1740282642706,-500.0,0.00014406,2]
[354141865,1740282642716,-500.0,0.00014407,2]
[354141866,1740282642725,-858.12,0.00014407,2]
[354141867,1740282642735,-500.0,0.00014407,2]
[354141868,1740282642744,-500.0,0.00014407,2]
[354141869,1740282642753,-500.0,0.00014407,2]
[354141870,1740282642762,-500.0,0.00014407,2]
[354141871,1740282642771,-500.0,0.00014407,2]
[354141872,1740282642780,-1077.37,0.00014407,2]
[354141873,1740282642789,-500.0,0.00014407,2]
[354141874,1740282642798,-1391.46,0.00014407,2]
[354141875,1740282642807,-828.69,0.00014407,2]
[354141876,1740282642816,-520.52,0.00014407,2]
[354141877,1740282642825,-500.0,0.00014407,2]
[354141878,1740282642834,-500.0,0.00014407,2]
[354141879,1740282642844,-198.17167666,0.00014407,2]
[354141880,1740282642853,-546.95,0.00014407,2]
[354141881,1740282642864,-500.0,0.00014408,2]
[354141882,1740282642873,-500.0,0.00014408,2]
[354141883,1740282642884,-500.0,0.00014408,2]
[354141884,1740282642893,-500.0,0.00014408,2]
[354141885,1740282642903,-500.0,0.00014408,2]
[354141886,1740282642912,-500.0,0.00014408,2]
[354141887,1740282642921,-500.0,0.00014488,2]
[354141888,1740282642930,-500.0,0.00014488,2]
[354141889,1740282642939,-333.19807125,0.00014488,2]
[354141891,1740282642949,-500.0,0.00014488,2]
[354141893,1740282642958,-500.0,0.00014488,2]
[354141894,1740282642968,-174.89905902,0.00014488,2]
[354141895,1740282642977,-500.0,0.00014488,2]
[354141896,1740282642987,-577.19376363,0.00014488,2]
[354141897,1740282642997,-500.0,0.00014488,2]
[354141898,1740282643007,-371.56152268,0.00014488,2]
[354141899,1740282643018,-500.0,0.00014488,2]
[354141900,1740282643027,-500.0,0.00014488,2]
[354141901,1740282643036,-332.02882842,0.00014488,2]
[354141902,1740282643045,-500.0,0.00014488,2]
[354141903,1740282643055,-500.0,0.00014488,2]
[354141904,1740282643064,-500.0,0.00014488,2]
[354141905,1740282643073,-611.67,0.00014488,2]
[354141906,1740282643083,-1184.51,0.00014488,2]
[354141907,1740282643092,-500.0,0.00014488,2]
[354141908,1740282643101,-500.0,0.00014488,2]
[354141909,1740282643110,-593.96,0.00014488,2]
[354141910,1740282643119,-500.0,0.00014488,2]
[354141911,1740282643132,-500.0,0.00014488,2]
[354141912,1740282643142,-500.0,0.00014488,2]
[354141913,1740282643150,-500.0,0.00014488,2]
[354141914,1740282643160,-500.0,0.00014488,2]
[354141916,1740282643170,-3231.29,0.00014488,2]
[354141917,1740282643179,-386.64690722,0.00014488,2]
[354141918,1740282643188,-500.0,0.00014488,2]
[354141919,1740282643198,-500.0,0.00014488,2]
[354141920,1740282643207,-506.4215794,0.00014488,2]
[354141921,1740282643216,-438.45457882,0.00014488,2]
[354141927,1740282643313,-579.15425206,0.00014488,2]
[354141929,1740282643323,-500.0,0.00014488,2]
[354141931,1740282643332,-1607.15,0.00014488,2]
[354141933,1740282643342,-500.0,0.00014488,2]
[354141936,1740282643351,-500.0,0.00014488,2]
[354141938,1740282643364,-8222.5,0.00014488,2]
[354141940,1740282643373,-500.0,0.00014488,2]
[354141942,1740282643382,-500.0,0.00014488,2]
[354141944,1740282643391,-500.0,0.00014488,2]
[354141946,1740282643400,-621.53231473,0.00014489,2]
[354141948,1740282643410,-858.12,0.00014489,2]
[354141950,1740282643419,-500.0,0.00014489,2]
[354141952,1740282643430,-484.88257258,0.00014489,2]
[354141954,1740282643441,-540.80948961,0.00014489,2]
[354141956,1740282643450,-194.70671649,0.00014489,2]
[354141958,1740282643459,-500.0,0.00014489,2]
[354141960,1740282643468,-1077.37,0.00014489,2]
[354141962,1740282643477,-221.97517115,0.00014489,2]
[354141964,1740282643487,-1391.46,0.00014489,2]
[354141966,1740282643497,-828.69,0.00014489,2]
[354141968,1740282643507,-520.52,0.00014489,2]
[354141970,1740282643517,-500.0,0.00014489,2]
[354141972,1740282643527,-500.0,0.00014489,2]
[354141974,1740282643536,-546.95,0.00014489,2]
[354141976,1740282643546,-558.14935204,0.0001449,2]
[354141978,1740282643555,-500.0,0.0001449,2]
[354141980,1740282643564,-500.0,0.0001449,2]
[354141982,1740282643574,-500.0,0.0001449,2]
[354141984,1740282643583,-519.32224101,0.0001449,2]
[354141986,1740282643592,-500.0,0.0001449,2]
[354141989,1740282643601,-174.17096562,0.0001452,2]
[354141990,1740282643611,-5665.48500306,0.00014561,2]
[354141993,1740282643623,-500.0,0.0001457,2]
[354141994,1740282643632,-500.0,0.0001457,2]
[354141997,1740282643644,-500.0,0.0001457,2]
[354141999,1740282643653,-289.2669688,0.0001457,2]
[354142001,1740282643663,-500.0,0.0001457,2]
[354142002,1740282643672,-500.0,0.0001457,2]
[354142005,1740282643681,-500.0,0.0001457,2]
[354142007,1740282643691,-500.0,0.0001457,2]
[354142009,1740282643699,-500.0,0.0001457,2]
[354142011,1740282643709,-500.0,0.0001457,2]
[354142013,1740282643718,-500.0,0.0001457,2]
[354142015,1740282643727,-611.67,0.0001457,2]
[354142017,1740282643736,-1184.51,0.0001457,2]
[354142019,1740282643746,-500.0,0.0001457,2]
[354142021,1740282643755,-500.0,0.0001457,2]
[354142023,1740282643764,-593.96,0.0001457,2]
[354142025,1740282643773,-500.0,0.0001457,2]
[354142027,1740282643783,-500.0,0.0001457,2]
[354142029,1740282643797,-500.0,0.0001457,2]
[354142031,1740282643806,-500.0,0.0001457,2]
[354142033,1740282643815,-500.0,0.0001457,2]
[354142035,1740282643825,-3231.29,0.0001457,2]
[354142036,1740282643834,-500.0,0.0001457,2]
[354142039,1740282643843,-500.0,0.0001457,2]
[354142041,1740282643852,-500.0,0.0001457,2]
[354142042,1740282643861,-1607.15,0.0001457,2]
[354142044,1740282643870,-500.0,0.0001457,2]
[354142046,1740282643879,-500.0,0.0001457,2]
[354142048,1740282643889,-8222.5,0.0001457,2]
[354142051,1740282643898,-500.0,0.0001457,2]
[354142052,1740282643907,-500.0,0.0001457,2]
[354142055,1740282643916,-313.18793951,0.0001457,2]
[354142057,1740282643926,-858.12,0.00014571,2]
[354142058,1740282643936,-500.0,0.00014571,2]
[354142061,1740282643946,-500.0,0.00014571,2]
[354142062,1740282643955,-1077.37,0.00014571,2]
[354142065,1740282643964,-1391.46,0.00014571,2]
[354142067,1740282643974,-828.69,0.00014571,2]
[354142069,1740282643983,-520.52,0.00014571,2]
[354142071,1740282643992,-500.0,0.00014571,2]
[354142073,1740282644001,-500.0,0.00014571,2]
[354142075,1740282644010,-546.95,0.00014571,2]
[354142077,1740282644020,-180.42950727,0.00014572,2]
[354142079,1740282644029,-500.0,0.00014572,2]
[354142081,1740282644039,-505.22082809,0.00014572,2]
[354142083,1740282644048,-508.37962303,0.00014572,2]
[354142085,1740282644057,-358.7126771,0.000146,2]
[354142087,1740282644066,-153.0,0.000146,2]
[354142089,1740282644075,-309.592814,0.000146,2]
[354142091,1740282644084,-774.9129227,0.000146,2]
[354142093,1740282644093,-306.0,0.000146,2]
[354142095,1740282644102,-153.0,0.000146,2]
[354142097,1740282644110,-13279.54588923,0.00014605,2]
[354142099,1740282644120,-620.1044048,0.00014652,2]
[354142101,1740282644129,-500.0,0.00014652,2]
[354142103,1740282644138,-500.0,0.00014652,2]
[354142105,1740282644147,-500.0,0.00014652,2]
[354142107,1740282644156,-500.0,0.00014652,2]
[354142109,1740282644166,-500.0,0.00014652,2]
[354142111,1740282644175,-387.10845837,0.00014652,2]
[354142113,1740282644184,-500.0,0.00014652,2]
[354142115,1740282644193,-500.0,0.00014652,2]
[354142117,1740282644202,-500.0,0.00014652,2]
[354142119,1740282644211,-611.67,0.00014652,2]
[354142121,1740282644220,-1184.51,0.00014652,2]
[354142123,1740282644229,-500.0,0.00014652,2]
[354142125,1740282644238,-500.0,0.00014652,2]
[354142127,1740282644248,-593.96,0.00014652,2]
[354142128,1740282644257,-500.0,0.00014652,2]
[354142130,1740282644266,-500.0,0.00014652,2]
[354142133,1740282644275,-500.0,0.00014652,2]
[354142134,1740282644284,-500.0,0.00014652,2]
[354142136,1740282644293,-500.0,0.00014652,2]
[354142138,1740282644302,-3231.29,0.00014652,2]
[354142140,1740282644312,-500.0,0.00014652,2]
[354142142,1740282644321,-500.0,0.00014652,2]
[354142144,1740282644330,-500.0,0.00014652,2]
[354142146,1740282644339,-1607.15,0.00014652,2]
[354142148,1740282644348,-500.0,0.00014652,2]
[354142150,1740282644357,-500.0,0.00014652,2]
[354142152,1740282644369,-8222.5,0.00014652,2]
[354142153,1740282644379,-500.0,0.00014652,2]
[354142156,1740282644389,-500.0,0.00014652,2]
[354142157,1740282644402,-858.12,0.00014653,2]
[354142160,1740282644411,-500.0,0.00014653,2]
[354142162,1740282644422,-500.0,0.00014653,2]
[354142163,1740282644431,-1077.37,0.00014653,2]
[354142166,1740282644444,-1391.46,0.00014653,2]
[354142167,1740282644454,-828.69,0.00014653,2]
[354142170,1740282644464,-520.52,0.00014653,2]
[354142171,1740282644475,-500.0,0.00014653,2]
[354142173,1740282644484,-282.75378289,0.00014653,2]
[354142175,1740282644493,-546.95,0.00014653,2]
[354142178,1740282644502,-500.0,0.00014654,2]
[354142179,1740282644511,-219.0182236,0.00014697,2]
[354142181,1740282644521,-1318.18844186,0.00014716,2]
[354142183,1740282644530,-500.0,0.00014734,2]
[354142185,1740282644539,-500.0,0.00014734,2]
[354142188,1740282644549,-322.92142907,0.00014734,2]
[354142190,1740282644559,-500.0,0.00014734,2]
[354142192,1740282644567,-397.07962336,0.00014734,2]
[354142194,1740282644577,-211.94418371,0.00014734,2]
[354142195,1740282644586,-500.0,0.00014734,2]
[354142198,1740282644595,-500.0,0.00014734,2]
[354142200,1740282644604,-611.67,0.00014734,2]
[354142202,1740282644614,-1184.51,0.00014734,2]
[354142204,1740282644623,-500.0,0.00014734,2]
[354142206,1740282644632,-500.0,0.00014734,2]
[354142208,1740282644641,-593.96,0.00014734,2]
[354142209,1740282644651,-500.0,0.00014734,2]
[354142211,1740282644661,-500.0,0.00014734,2]
[354142213,1740282644670,-497.9831486,0.00014734,2]
[354142215,1740282644679,-500.0,0.00014734,2]
[354142217,1740282644688,-500.0,0.00014734,2]
[354142218,1740282644698,-3231.29,0.00014734,2]
[354142219,1740282644707,-500.0,0.00014734,2]
[354142220,1740282644717,-500.0,0.00014734,2]
[354142221,1740282644726,-500.0,0.00014734,2]
[354142222,1740282644735,-1607.15,0.00014734,2]
[354142223,1740282644745,-500.0,0.00014734,2]
[354142224,1740282644754,-500.0,0.00014734,2]
[354142225,1740282644764,-8222.5,0.00014734,2]
[354142226,1740282644778,-500.0,0.00014734,2]
[354142227,1740282644787,-500.0,0.00014734,2]
[354142228,1740282644797,-500.0,0.00014736,2]
[354142229,1740282644806,-858.12,0.00014736,2]
[354142230,1740282644816,-500.0,0.00014736,2]
[354142231,1740282644825,-500.0,0.00014736,2]
[354142232,1740282644834,-1077.37,0.00014736,2]
[354142233,1740282644844,-1391.46,0.00014736,2]
[354142234,1740282644853,-828.69,0.00014736,2]
[354142235,1740282644862,-520.52,0.00014736,2]
[354142236,1740282644872,-500.0,0.00014736,2]
[354142237,1740282644881,-546.95,0.00014736,2]
[354142238,1740282644891,-500.0,0.00014815,2]
[354142239,1740282644900,-249.60907265,0.00014815,2]
[354142240,1740282644911,-300.25057534,0.00014816,2]
[354142241,1740282644921,-500.0,0.00014816,2]
[354142242,1740282644935,-500.0,0.00014816,2]
[354142243,1740282644946,-500.0,0.00014816,2]
[354142244,1740282644955,-500.0,0.00014816,2]
[354142245,1740282644964,-611.67,0.00014816,2]
[354142246,1740282644974,-1184.51,0.00014816,2]
[354142247,1740282644983,-500.0,0.00014816,2]
[354142248,1740282644992,-500.0,0.00014816,2]
[354142249,1740282645001,-593.96,0.00014816,2]
[354142250,1740282645010,-500.0,0.00014816,2]
[354142251,1740282645019,-500.0,0.00014816,2]
[354142252,1740282645029,-500.0,0.00014816,2]
[354142253,1740282645038,-204.54046797,0.00014816,2]
[354142254,1740282645048,-3231.29,0.00014816,2]
[354142255,1740282645057,-500.0,0.00014816,2]
[354142256,1740282645067,-500.0,0.00014816,2]
[354142257,1740282645076,-500.0,0.00014816,2]
[354142258,1740282645085,-1607.15,0.00014816,2]
[354142259,1740282645095,-500.0,0.00014816,2]
[354142260,1740282645104,-500.0,0.00014816,2]
[354142261,1740282645113,-8222.5,0.00014816,2]
[354142262,1740282645123,-500.0,0.00014816,2]
[354142263,1740282645132,-500.0,0.00014816,2]
[354142264,1740282645141,-858.12,0.00014818,2]
[354142265,1740282645151,-500.0,0.00014818,2]
[354142266,1740282645160,-500.0,0.00014818,2]
[354142267,1740282645169,-1077.37,0.00014818,2]
[354142268,1740282645178,-1391.46,0.00014818,2]
[354142269,1740282645187,-828.69,0.00014818,2]
[354142270,1740282645197,-520.52,0.00014818,2]
[354142271,1740282645206,-500.0,0.00014818,2]
[354142272,1740282645215,-546.95,0.00014818,2]
[354142273,1740282645226,-500.0,0.00014819,2]
[354142274,1740282645235,-501.78076125,0.00014849,2]
[354142275,1740282645244,-258722.07242035,0.0001485,5]
[354142276,1740282645254,-500.0,0.00014873,2]